fUST/lending_fUST_20251212
["ID","MTS","AMOUNT","RATE_DAILY","PERIOD"]
[398255908,1765473044435,-500.0,0.00012876,2]
[398255909,1765473044444,-1883.8,0.00012876,2]
[398255910,1765473044453,-500.0,0.00012876,2]
[398255911,1765473044463,-500.0,0.00012876,2]
[398255912,1765473044472,-500.0,0.00012876,2]
[398255913,1765473044482,-542.07,0.00012876,2]
[398255914,1765473044492,-500.0,0.00012876,2]
[398255915,1765473044501,-500.0,0.00012876,2]
[398255916,1765473044511,-500.0,0.00012876,2]
[398255917,1765473044522,-500.0,0.00012876,2]
[398255918,1765473044531,-626.92,0.00012876,2]
[398255919,1765473044541,-500.14753987,0.00012876,2]
[398255920,1765473044556,-1839.54,0.00012876,2]
[398255921,1765473044566,-500.0,0.00012876,2]
[398255922,1765473044576,-500.0,0.00012876,2]
[398255923,1765473044585,-500.0,0.00012876,2]
[398255924,1765473044595,-2829.3,0.00012876,2]
[398255925,1765473044604,-512.17,0.00012876,2]
[398255926,1765473044614,-500.0,0.00012876,2]
[398255927,1765473044626,-700.08,0.00012876,2]
[398255928,1765473044636,-500.0,0.00012876,2]
[398255929,1765473044645,-500.0,0.00012876,2]
[398255930,1765473044655,-500.0,0.00012876,2]
[398255931,1765473044664,-566.46,0.00012876,2]
[398255932,1765473044673,-500.0,0.00012876,2]
[398255933,1765473044682,-500.0,0.00012876,2]
[398255934,1765473044692,-500.0,0.00012876,2]
[398255935,1765473044704,-500.0,0.00012876,2]
[398255936,1765473044714,-500.0,0.00012876,2]
[398255937,1765473044724,-1148.61,0.00012876,2]
[398255938,1765473044733,-500.0,0.00012876,2]
[398255939,1765473044743,-863.88,0.00012876,2]
[398255940,1765473044752,-500.0,0.00012876,2]
[398255941,1765473044762,-500.24144625,0.00012876,2]
[398255942,1765473044771,-1156.91,0.00012876,2]
[398255943,1765473044781,-500.0,0.00012876,2]
[398255944,1765473044790,-500.0,0.00012876,2]
[398255945,1765473044799,-500.0,0.00012876,2]
[398255946,1765473044809,-661.38,0.00012876,2]
[398255947,1765473044818,-500.36736824,0.00012876,2]
[398255948,1765473044827,-676.34,0.00012876,2]
[398255949,1765473044837,-500.0,0.00012876,2]
[398255950,1765473044847,-500.0,0.00012876,2]
[398255951,1765473044856,-500.0,0.00012876,2]
[398255952,1765473044866,-500.0,0.00012876,2]
[398255953,1765473044876,-951.19,0.00012876,2]
[398255954,1765473044886,-500.0,0.00012876,2]
[398255955,1765473044895,-500.0,0.00012876,2]
[398255956,1765473044907,-500.0,0.00012876,2]
[398255957,1765473044918,-1268.0,0.00012876,2]
[398255958,1765473044927,-696.06,0.00012876,2]
[398255959,1765473044936,-500.0,0.00012876,2]
[398255960,1765473044946,-500.0,0.00012876,2]
[398255961,1765473044958,-532.67,0.00012876,2]
[398255962,1765473044968,-500.0,0.00012876,2]
[398255963,1765473044978,-500.5788983,0.00012876,2]
[398255964,1765473044988,-1479.61,0.00012876,2]
[398255965,1765473044998,-1666.57,0.00012876,2]
[398255966,1765473045009,-664.88,0.00012876,2]
[398255967,1765473045018,-571.38,0.00012876,2]
[398255968,1765473045029,-500.0,0.00012876,2]
[398255969,1765473045039,-500.0,0.00012876,2]
[398255970,1765473045049,-500.0,0.00012876,2]
[398255971,1765473045059,-500.0,0.00012876,2]
[398255972,1765473045068,-500.0,0.00012876,2]
[398255973,1765473045078,-500.0,0.00012876,2]
[398255974,1765473045088,-920.86,0.00012876,2]
[398255975,1765473045097,-500.0,0.00012876,2]
[398255976,1765473045107,-500.0,0.00012876,2]
[398255977,1765473045117,-559.83308809,0.00012876,2]
[398255978,1765473045127,-500.51957961,0.00012876,2]
[398255979,1765473045136,-500.0,0.00012876,2]
[398255980,1765473045146,-500.0,0.00012876,2]
[398255981,1765473045156,-500.0,0.00012876,2]
[398255982,1765473045165,-1042.86,0.00012876,2]
[398255983,1765473045176,-500.0,0.00012876,2]
[398255984,1765473045186,-500.0,0.00012876,2]
[398255985,1765473045196,-500.0,0.00012876,2]
[398255986,1765473045206,-500.0,0.00012876,2]
[398255987,1765473045216,-500.0,0.00012876,2]
[398255988,1765473045225,-1029.97,0.00012876,2]
[398255989,1765473045235,-500.0,0.00012876,2]
[398255990,1765473045246,-500.0,0.00012876,2]
[398255991,1765473045256,-500.0,0.00012876,2]
[398255992,1765473045266,-500.0,0.00012876,2]
[398255993,1765473045275,-500.0,0.00012876,2]
[398255994,1765473045285,-500.0,0.00012876,2]
[398255995,1765473045297,-500.0,0.00012876,2]
[398255996,1765473045307,-500.0,0.00012876,2]
[398255997,1765473045318,-500.0,0.00012876,2]
[398255998,1765473045327,-1041.62,0.00012876,2]
[398255999,1765473045337,-500.0,0.00012876,2]
[398256000,1765473045347,-500.0,0.00012876,2]
[398256001,1765473045358,-500.0,0.00012876,2]
[398256002,1765473045367,-500.0,0.00012876,2]
[398256003,1765473045377,-1387.16,0.00012876,2]
[398256004,1765473045387,-500.0,0.00012876,2]
[398256005,1765473045397,-599.12,0.00012876,2]
[398256006,1765473045406,-500.0,0.00012876,2]
[398256007,1765473045416,-500.0,0.00012876,2]
[398256008,1765473045426,-500.0,0.00012876,2]
[398256009,1765473045435,-500.0,0.00012876,2]
[398256010,1765473045445,-913.77,0.00012876,2]
[398256011,1765473045454,-500.0,0.00012876,2]
[398256012,1765473045464,-565.44269109,0.00012876,2]
[398256013,1765473045473,-765.56,0.00012876,2]
[398256014,1765473045483,-678.15,0.00012876,2]
[398256015,1765473045493,-500.0,0.00012876,2]
[398256016,1765473045503,-873.29,0.00012876,2]
[398256017,1765473045512,-500.0,0.00012876,2]
[398256018,1765473045522,-500.0,0.00012876,2]
[398256019,1765473045532,-500.0,0.00012876,2]
[398256020,1765473045543,-500.0,0.00012876,2]
[398256021,1765473045553,-500.30232461,0.00012876,2]
[398256022,1765473045563,-500.0,0.00012876,2]
[398256023,1765473045575,-500.0,0.00012876,2]
[398256025,1765473045586,-500.0,0.00012876,2]
[398256026,1765473045596,-1017.67,0.00012876,2]
[398256027,1765473045605,-829.65,0.00012876,2]
[398256028,1765473045615,-500.0,0.00012876,2]
[398256029,1765473045625,-500.0,0.00012876,2]
[398256030,1765473045634,-500.0,0.00012876,2]
[398256031,1765473045644,-533.50770526,0.00012876,2]
[398256037,1765473045992,-1186.27,0.00012876,2]
[398256038,1765473046018,-500.0,0.00012876,2]
[398256039,1765473046028,-500.0,0.00012876,2]
[398256040,1765473046040,-500.0,0.00012876,2]
[398256041,1765473046050,-500.0,0.00012876,2]
[398256042,1765473046060,-500.0,0.00012876,2]
[398256043,1765473046070,-1719.24,0.00012876,2]
[398256044,1765473046080,-576.64,0.00012876,2]
[398256045,1765473046089,-500.0,0.00012876,2]
[398256046,1765473046098,-500.0,0.00012876,2]
[398256047,1765473046108,-1000.0,0.00012876,2]
[398256048,1765473046118,-500.0,0.00012876,2]
[398256049,1765473046127,-500.0,0.00012876,2]
[398256050,1765473046137,-1255.04,0.00012876,2]
[398256051,1765473046146,-500.0,0.00012876,2]
[398256052,1765473046155,-500.0,0.00012876,2]
[398256053,1765473046165,-500.0,0.00012876,2]
[398256054,1765473046174,-500.0,0.00012876,2]
[398256055,1765473046183,-1858.97,0.00012876,2]
[398256056,1765473046193,-692.35,0.00012876,2]
[398256057,1765473046202,-500.0,0.00012876,2]
[398256058,1765473046212,-500.0,0.00012876,2]
[398256059,1765473046221,-1482.69,0.00012876,2]
[398256060,1765473046231,-500.0,0.00012876,2]
[398256061,1765473046240,-500.0,0.00012876,2]
[398256062,1765473046251,-1716.66,0.00012876,2]
[398256063,1765473046260,-500.0,0.00012876,2]
[398256065,1765473046270,-500.0,0.00012876,2]
[398256067,1765473046279,-3325.19,0.00012876,2]
[398256068,1765473046288,-565.52,0.00012876,2]
[398256070,1765473046297,-724.84,0.00012876,2]
[398256071,1765473046307,-500.0,0.00012876,2]
[398256072,1765473046316,-500.0,0.00012876,2]
[398256073,1765473046325,-500.0,0.00012876,2]
[398256074,1765473046335,-859.19,0.00012876,2]
[398256075,1765473046345,-520.73,0.00012876,2]
[398256076,1765473046354,-1859.85,0.00012876,2]
[398256077,1765473046364,-500.0,0.00012876,2]
[398256078,1765473046375,-1258.13,0.00012876,2]
[398256079,1765473046391,-2447.95,0.00012876,2]
[398256080,1765473046401,-500.0,0.00012876,2]
[398256081,1765473046411,-500.0,0.00012876,2]
[398256082,1765473046421,-674.1,0.00012876,2]
[398256083,1765473046430,-745.61,0.00012876,2]
[398256084,1765473046441,-556.80516864,0.00012876,2]
[398256085,1765473046450,-500.0,0.00012876,2]
[398256086,1765473046460,-500.0,0.00012876,2]
[398256087,1765473046471,-933.97,0.00012876,2]
[398256088,1765473046481,-665.21,0.00012876,2]
[398256089,1765473046492,-500.0,0.00012876,2]
[398256090,1765473046502,-500.0,0.00012876,2]
[398256091,1765473046512,-500.0,0.00012876,2]
[398256092,1765473046522,-1369.84,0.00012876,2]
[398256093,1765473046532,-617.92,0.00012876,2]
[398256094,1765473046542,-500.0,0.00012876,2]
[398256095,1765473046552,-500.0,0.00012876,2]
[398256096,1765473046561,-500.0,0.00012876,2]
[398256097,1765473046570,-500.0,0.00012876,2]
[398256098,1765473046580,-500.0,0.00012876,2]
[398256099,1765473046590,-500.0,0.00012876,2]
[398256100,1765473046599,-500.0,0.00012876,2]
[398256101,1765473046609,-500.0,0.00012876,2]
[398256102,1765473046619,-500.0,0.00012876,2]
[398256103,1765473046628,-500.0,0.00012876,2]
[398256104,1765473046637,-1527.37,0.00012876,2]
[398256105,1765473046646,-2464.33,0.00012876,2]
[398256106,1765473046656,-500.0,0.00012876,2]
[398256107,1765473046666,-858.6,0.00012876,2]
[398256108,1765473046675,-500.0,0.00012876,2]
[398256109,1765473046685,-1279.21,0.00012876,2]
[398256110,1765473046694,-500.0,0.00012876,2]
[398256111,1765473046703,-500.0,0.00012876,2]
[398256112,1765473046713,-2247.37,0.00012876,2]
[398256113,1765473046722,-500.0,0.00012876,2]
[398256114,1765473046732,-500.0,0.00012876,2]
[398256115,1765473046741,-1195.79,0.00012876,2]
[398256116,1765473046751,-500.0,0.00012876,2]
[398256117,1765473046760,-500.0,0.00012876,2]
[398256118,1765473046769,-500.0,0.00012876,2]
[398256119,1765473046778,-500.0,0.00012876,2]
[398256120,1765473046788,-500.0,0.00012876,2]
[398256121,1765473046805,-874.92,0.00012876,2]
[398256122,1765473046819,-500.0,0.00012876,2]
[398256123,1765473046830,-500.0,0.00012876,2]
[398256124,1765473046840,-526.06,0.00012876,2]
[398256125,1765473046852,-505.47,0.00012876,2]
[398256126,1765473046862,-500.0,0.00012876,2]
[398256127,1765473046872,-500.0,0.00012876,2]
[398256128,1765473046882,-500.0,0.00012876,2]
[398256129,1765473046892,-700.69,0.00012876,2]
[398256130,1765473046903,-500.0,0.00012876,2]
[398256131,1765473046913,-500.0,0.00012876,2]
[398256132,1765473046923,-500.0,0.00012876,2]
[398256133,1765473046933,-500.80907442,0.00012876,2]
[398256134,1765473046944,-500.0,0.00012876,2]
[398256135,1765473046954,-500.0,0.00012876,2]
[398256136,1765473046969,-681.33,0.00012876,2]
[398256137,1765473046980,-500.0,0.00012876,2]
[398256138,1765473046990,-500.0,0.00012876,2]
[398256139,1765473047001,-500.0,0.00012876,2]
[398256140,1765473047012,-500.0,0.00012876,2]
[398256141,1765473047022,-500.0,0.00012876,2]
[398256142,1765473047035,-500.0,0.00012876,2]
[398256143,1765473047047,-701.01,0.00012876,2]
[398256144,1765473047057,-500.0,0.00012876,2]
[398256145,1765473047066,-1761.69,0.00012876,2]
[398256146,1765473047076,-500.0,0.00012876,2]
[398256147,1765473047086,-500.0,0.00012876,2]
[398256148,1765473047096,-668.75,0.00012876,2]
[398256149,1765473047106,-1576.73,0.00012876,2]
[398256150,1765473047116,-500.0,0.00012876,2]
[398256151,1765473047126,-500.0,0.00012876,2]
[398256152,1765473047135,-500.0,0.00012876,2]
[398256153,1765473047145,-1411.4,0.00012876,2]
[398256154,1765473047156,-434.69063069,0.00012876,2]
[398256155,1765473047166,-500.0,0.00012876,2]
[398256156,1765473047176,-7512.92,0.00012876,2]
[398256157,1765473047186,-500.0,0.00012876,2]
[398256158,1765473047196,-500.0,0.00012876,2]
[398256159,1765473047205,-605.4071975,0.00012876,2]
[398256160,1765473047216,-637.83,0.00012876,2]
[398256161,1765473047226,-497.44805148,0.00012876,2]
[398256162,1765473047236,-500.0,0.00012876,2]
[398256163,1765473047246,-500.0,0.00012876,2]
[398256164,1765473047256,-1296.47,0.00012876,2]
[398256165,1765473047266,-1688.98,0.00012876,2]
[398256166,1765473047276,-500.0,0.00012876,2]
[398256167,1765473047286,-500.0,0.00012876,2]
[398256168,1765473047296,-1630.81,0.00012876,2]
[398256169,1765473047305,-625.30830117,0.00012876,2]
[398256170,1765473047315,-647.94,0.00012876,2]
[398256171,1765473047325,-500.0,0.00012876,2]
[398256172,1765473047336,-500.0,0.00012876,2]
[398256173,1765473047345,-1041.06,0.00012876,2]
[398256174,1765473047355,-500.0,0.00012876,2]
[398256175,1765473047365,-500.0,0.00012876,2]
[398256176,1765473047375,-1080.19,0.00012876,2]
[398256177,1765473047385,-3732.69,0.00012876,2]
[398256178,1765473047395,-803.0,0.00012876,2]
[398256179,1765473047405,-500.0,0.00012876,2]
[398256180,1765473047415,-500.0,0.00012876,2]
[398256181,1765473047425,-500.15877815,0.00012876,2]
[398256182,1765473047434,-1453.87,0.00012876,2]
[398256183,1765473047444,-1663.21,0.00012876,2]
[398256184,1765473047453,-950.4,0.00012876,2]
[398256185,1765473047464,-500.0,0.00012876,2]
[398256186,1765473047476,-500.0,0.00012876,2]
[398256187,1765473047486,-1287.46,0.00012876,2]
[398256188,1765473047498,-500.0,0.00012876,2]
[398256189,1765473047509,-500.0,0.00012876,2]
[398256190,1765473047521,-1595.81,0.00012876,2]
[398256191,1765473047533,-500.0,0.00012876,2]
[398256192,1765473047548,-500.0,0.00012876,2]
[398256193,1765473047559,-500.0,0.00012876,2]
[398256194,1765473047569,-270.54396524,0.00012876,2]
[398256195,1765473047580,-536.67,0.00012876,2]
[398256196,1765473047590,-500.0,0.00012876,2]
[398256197,1765473047600,-500.0,0.00012876,2]
[398256198,1765473047610,-500.0,0.00012876,2]
[398256199,1765473047621,-1030.43,0.00012876,2]
[398256200,1765473047631,-947.41,0.00012876,2]
[398256201,1765473047640,-500.0,0.00012876,2]
[398256202,1765473047650,-1145.0,0.00012876,2]
[398256203,1765473047660,-610.1,0.00012876,2]
[398256204,1765473047670,-916.72,0.00012876,2]
[398256205,1765473047679,-500.0,0.00012876,2]
[398256206,1765473047689,-500.18154435,0.00012876,2]
[398256207,1765473047699,-947.38,0.00012876,2]
[398256208,1765473047709,-603.81,0.00012876,2]
[398256209,1765473047720,-1226.34,0.00012876,2]
[398256210,1765473047730,-199.79,0.00012876,2]
[398256211,1765473047739,-1501.42,0.00012876,2]
[398256212,1765473047749,-500.0,0.00012876,2]
[398256213,1765473047759,-500.0,0.00012876,2]
[398256214,1765473047768,-500.0,0.00012876,2]
[398256215,1765473047777,-500.0,0.00012876,2]
[398256216,1765473047787,-500.0,0.00012876,2]
[398256217,1765473047799,-500.0,0.00012876,2]
[398256218,1765473047809,-1113.97,0.00012876,2]
[398256219,1765473047820,-500.0,0.00012876,2]
[398256220,1765473047830,-982.88,0.00012876,2]
[398256221,1765473047840,-817.06,0.00012876,2]
[398256222,1765473047849,-603.27,0.00012876,2]
[398256223,1765473047859,-504.29569189,0.00012876,2]
[398256224,1765473047869,-1222.38,0.00012876,2]
[398256225,1765473047879,-2222.37,0.00012876,2]
[398256226,1765473047891,-3340.02,0.00012876,2]
[398256227,1765473047900,-500.0,0.00012876,2]
[398256228,1765473047910,-500.0,0.00012876,2]
[398256229,1765473047920,-500.57736959,0.00012876,2]
[398256230,1765473047930,-500.0,0.00012876,2]
[398256231,1765473047939,-500.10488545,0.00012876,2]
[398256232,1765473047949,-1823.03,0.00012876,2]
[398256233,1765473047963,-500.51378199,0.00012876,2]
[398256234,1765473047972,-740.93,0.00012876,2]
[398256235,1765473047982,-500.0,0.00012876,2]
[398256236,1765473047991,-500.0,0.00012876,2]
[398256237,1765473048001,-2279.37,0.00012876,2]
[398256238,1765473048010,-1319.35,0.00012876,2]
[398256239,1765473048020,-500.0,0.00012876,2]
[398256240,1765473048029,-572.55,0.00012876,2]
[398256241,1765473048043,-3595.68,0.00012876,2]
[398256242,1765473048053,-500.0,0.00012876,2]
[398256243,1765473048063,-500.0,0.00012876,2]
[398256244,1765473048072,-500.0,0.00012876,2]
[398256245,1765473048082,-541.57305832,0.00012876,2]
[398256246,1765473048092,-604.59,0.00012876,2]
[398256247,1765473048101,-635.56,0.00012876,2]
[398256248,1765473048111,-870.33,0.00012876,2]
[398256249,1765473048120,-1128.13,0.00012876,2]
[398256250,1765473048130,-1376.81,0.00012876,2]
[398256251,1765473048139,-500.0,0.00012876,2]
[398256252,1765473048149,-500.0,0.00012876,2]
[398256253,1765473048159,-500.0,0.00012876,2]
[398256254,1765473048168,-500.0,0.00012876,2]
[398256255,1765473048178,-313.38206611,0.00012876,2]
[398256256,1765473048188,-500.0,0.00012876,2]
[398256257,1765473048198,-532.41137384,0.00012876,2]
[398256258,1765473048208,-1442.81,0.00012876,2]
[398256259,1765473048217,-500.0,0.00012876,2]
[398256260,1765473048228,-500.0,0.00012876,2]
[398256261,1765473048237,-500.0,0.00012876,2]
[398256262,1765473048248,-500.0,0.00012876,2]
[398256263,1765473048258,-500.83329226,0.00012876,2]
[398256264,1765473048268,-500.0,0.00012876,2]
[398256265,1765473048278,-500.0,0.00012876,2]
[398256266,1765473048288,-579.64854543,0.00012876,2]
[398256267,1765473048298,-500.0,0.00012876,2]
[398256268,1765473048307,-500.0,0.00012876,2]
[398256269,1765473048317,-500.19922111,0.00012876,2]
[398256270,1765473048327,-1626.69,0.00012876,2]
[398256271,1765473048338,-2114.36,0.00012876,2]
[398256272,1765473048348,-500.22312205,0.00012876,2]
[398256273,1765473048358,-1142.02,0.00012876,2]
[398256274,1765473048367,-1166.75,0.00012876,2]
[398256275,1765473048377,-500.0,0.00012876,2]
[398256276,1765473048387,-1326.87,0.00012876,2]
[398256277,1765473048397,-1524.16,0.00012876,2]
[398256278,1765473048407,-847.25,0.00012876,2]
[398256279,1765473048417,-500.0,0.00012876,2]
[398256280,1765473048426,-500.0,0.00012876,2]
[398256281,1765473048436,-550.41181352,0.00012876,2]
[398256282,1765473048446,-922.26,0.00012876,2]
[398256283,1765473048455,-820.02,0.00012876,2]
[398256284,1765473048465,-2189.83,0.00012876,2]
[398256285,1765473048475,-1088.15,0.00012876,2]
[398256286,1765473048570,-1543.6,0.00012876,2]
[398256287,1765473048580,-681.91,0.00012876,2]
[398256288,1765473048589,-500.0,0.00012876,2]
[398256289,1765473048599,-500.0,0.00012876,2]
[398256290,1765473048608,-501.05215851,0.00012876,2]
[398256291,1765473048618,-583.05873191,0.00012876,2]
[398256292,1765473048627,-500.0,0.00012876,2]
[398256293,1765473048636,-959.95,0.00012876,2]
[398256294,1765473048645,-500.0,0.00012876,2]
[398256295,1765473048653,-500.0,0.00012876,2]
[398256296,1765473048662,-500.0,0.00012876,2]
[398256297,1765473048671,-500.0,0.00012876,2]
[398256298,1765473048681,-500.0,0.00012876,2]
[398256299,1765473048690,-1538.57,0.00012876,2]
[398256300,1765473048699,-10671.61,0.00012876,2]
[398256301,1765473048708,-314.17371445,0.00012876,2]
[398256302,1765473048717,-500.52641712,0.00012876,2]
[398256303,1765473048726,-500.0,0.00012876,2]
[398256304,1765473048736,-500.0,0.00012876,2]
[398256305,1765473048745,-500.0,0.00012876,2]
[398256306,1765473048755,-500.0,0.00012876,2]
[398256307,1765473048765,-500.0,0.00012876,2]
[398256308,1765473048774,-873.52,0.00012876,2]
[398256309,1765473048783,-500.0,0.00012876,2]
[398256310,1765473048792,-3357.79,0.00012876,2]
[398256311,1765473048801,-500.0,0.00012876,2]
[398256312,1765473048811,-500.0,0.00012876,2]
[398256313,1765473048821,-1731.33,0.00012876,2]
[398256314,1765473048830,-500.0,0.00012876,2]
[398256315,1765473048839,-53416.15,0.00012876,2]
[398256316,1765473048848,-500.0,0.00012876,2]
[398256317,1765473048858,-500.0,0.00012876,2]
[398256318,1765473048867,-910.44,0.00012876,2]
[398256319,1765473048876,-500.0,0.00012876,2]
[398256320,1765473048886,-619.61,0.00012876,2]
[398256321,1765473048895,-1181.33,0.00012876,2]
[398256322,1765473048904,-500.0,0.00012876,2]
[398256323,1765473048914,-500.0,0.00012876,2]
[398256324,1765473048924,-875.86,0.00012876,2]
[398256325,1765473048933,-500.0,0.00012876,2]
[398256326,1765473048943,-604.4,0.00012876,2]
[398256327,1765473048953,-630.31,0.00012876,2]
[398256328,1765473048967,-8389.15,0.00012876,2]
[398256329,1765473048976,-2523.82,0.00012876,2]
[398256330,1765473048986,-500.0,0.00012876,2]
[398256331,1765473048995,-500.0,0.00012876,2]
[398256332,1765473049007,-500.0,0.00012876,2]
[398256333,1765473049017,-500.0,0.00012876,2]
[398256334,1765473049026,-850.25,0.00012876,2]
[398256335,1765473049036,-2914.61,0.00012876,2]
[398256336,1765473049047,-500.0,0.00012876,2]
[398256337,1765473049056,-1104.52,0.00012876,2]
[398256338,1765473049066,-484.39225814,0.00012876,2]
[398256339,1765473049076,-500.0,0.00012876,2]
[398256340,1765473049085,-1148.62,0.00012876,2]
[398256341,1765473049095,-544.2186763,0.00012876,2]
[398256342,1765473049104,-1841.97,0.00012876,2]
[398256343,1765473049113,-500.0,0.00012876,2]
[398256344,1765473049123,-500.0,0.00012876,2]
[398256345,1765473049132,-500.0,0.00012876,2]
[398256346,1765473049141,-1309.83,0.00012876,2]
[398256347,1765473049150,-500.0,0.00012876,2]
[398256348,1765473049159,-950.55,0.00012876,2]
[398256349,1765473049168,-1839.66,0.00012876,2]
[398256350,1765473049177,-500.0,0.00012876,2]
[398256351,1765473049186,-500.0,0.00012876,2]
[398256352,1765473049195,-8048.24,0.00012876,2]
[398256353,1765473049204,-500.0,0.00012876,2]
[398256354,1765473049214,-1410.6,0.00012876,2]
[398256355,1765473049223,-521.67816248,0.00012876,2]
[398256356,1765473049232,-500.0,0.00012876,2]
[398256357,1765473049241,-1097.57,0.00012876,2]
[398256358,1765473049251,-500.0,0.00012876,2]
[398256359,1765473049261,-2081.19,0.00012876,2]
[398256360,1765473049270,-500.0,0.00012876,2]
[398256361,1765473049279,-1191.31,0.00012876,2]
[398256362,1765473049289,-1560.76,0.00012876,2]
[398256363,1765473049300,-500.0,0.00012876,2]
[398256364,1765473049309,-887.69,0.00012876,2]
[398256365,1765473049318,-500.0,0.00012876,2]
[398256366,1765473049328,-987.32,0.00012876,2]
[398256367,1765473049339,-5938.55,0.00012876,2]
[398256368,1765473049348,-500.0,0.00012876,2]
[398256369,1765473049358,-500.0,0.00012876,2]
[398256370,1765473049368,-5007.32,0.00012876,2]
[398256371,1765473049378,-1973.08,0.00012876,2]
[398256372,1765473049388,-2136.22,0.00012876,2]
[398256373,1765473049397,-2066.71,0.00012876,2]
[398256374,1765473049407,-500.0,0.00012876,2]
[398256375,1765473049417,-556.60571711,0.00012876,2]
[398256376,1765473049426,-517.98090467,0.00012876,2]
[398256377,1765473049436,-500.0,0.00012876,2]
[398256378,1765473049445,-2108.49,0.00012876,2]
[398256379,1765473049455,-500.0,0.00012876,2]
[398256380,1765473049465,-500.0,0.00012876,2]
[398256381,1765473049474,-510.28694583,0.00012876,2]
[398256382,1765473049483,-990.15,0.00012876,2]
[398256383,1765473049493,-17849.44,0.00012876,2]
[398256384,1765473049503,-500.0,0.00012876,2]
[398256385,1765473049513,-500.0,0.00012876,2]
[398256386,1765473049523,-500.0,0.00012876,2]
[398256387,1765473049532,-1798.0,0.00012876,2]
[398256388,1765473049542,-3449.92,0.00012876,2]
[398256389,1765473049552,-500.0,0.00012876,2]
[398256390,1765473049561,-500.0,0.00012876,2]
[398256391,1765473049571,-500.0,0.00012876,2]
[398256392,1765473049580,-4118.34,0.00012876,2]
[398256393,1765473049590,-830.5,0.00012876,2]
[398256394,1765473049599,-500.0,0.00012876,2]
[398256395,1765473049608,-910.39,0.00012876,2]
[398256396,1765473049618,-500.0,0.00012876,2]
[398256397,1765473049627,-500.0,0.00012876,2]
[398256398,1765473049637,-15811.29,0.00012876,2]
[398256399,1765473049646,-500.0,0.00012876,2]
[398256400,1765473049655,-500.0,0.00012876,2]
[398256401,1765473049664,-862.37,0.00012876,2]
[398256402,1765473049674,-602.31,0.00012876,2]
[398256403,1765473049683,-525.88,0.00012876,2]
[398256404,1765473049692,-231.91516519,0.00012876,2]
[398256405,1765473049702,-500.0,0.00012876,2]
[398256406,1765473049711,-788.03,0.00012876,2]
[398256407,1765473049720,-2726.54,0.00012876,2]
[398256408,1765473049729,-500.0,0.00012876,2]
[398256409,1765473049739,-500.0,0.00012876,2]
[398256410,1765473049748,-500.0,0.00012876,2]
[398256411,1765473049757,-151.0,0.00012876,2]
[398256412,1765473049766,-500.0,0.00012876,2]
[398256413,1765473049776,-151.0,0.00012876,2]
[398256414,1765473049785,-215.800981,0.00012876,2]
[398256415,1765473049794,-1792.08,0.00012876,2]
[398256416,1765473049804,-500.0,0.00012876,2]